bitfinex-derivatives/quotes_SOLF0:USTF0_20250424
["timestamp","ask_amount","ask_price","bid_price","bid_amount"]
[1745505760928,33.5673,149.94,149.89,2.0051]
[1745505761133,33.5673,149.94,149.89,8.6742]
[1745505761525,15.67648795,149.93,149.86,2.1352]
[1745505761726,15.67648795,149.93,149.88,6.6698]
[1745505761935,15.67648795,149.93,149.86,2.1352]
[1745505762262,6.6684,149.92,149.87,6.6702]
[1745505762936,6.6684,149.92,149.88,6.6697]
[1745505763138,6.6684,149.92,149.86,2.1352]
[1745505763536,6.6686,149.91,149.87,6.67]
[1745505763936,6.6686,149.91,149.86,2.1352]
[1745505763937,15.67648795,149.93,149.86,2.1352]
[1745505764938,26.9,149.94,149.87,15.67648795]
[1745505765133,26.9,149.94,149.89,15.67648795]
[1745505765336,26.9,149.94,149.92,6.6676]
[1745505765538,26.9,149.94,149.87,15.67648795]
[1745505766139,26.9,149.94,149.86,2.1352]
[1745505766547,26.9,149.94,149.87,15.67648795]
[1745505767038,42.55648795,149.97,149.87,15.67648795]
[1745505767234,26.88,150.0,149.91,15.67648795]
[1745505767436,26.88,150.0,149.93,15.67648795]
[1745505767635,33.5445,150.0,149.94,1.9553]
[1745505767938,26.88,150.0,149.94,1.9553]
[1745505768940,15.67648795,149.97,149.92,2.0516]
[1745505769239,26.88,149.96,149.92,8.7194]
[1745505769439,26.88,149.96,149.88,2.1185]
[1745505769643,26.88,149.96,149.88,4.1062]
[1745505769847,26.88,149.96,149.89,15.67648795]
[1745505770043,26.88,149.99,149.91,15.67648795]
[1745505770338,42.55648795,149.99,149.91,15.67648795]
[1745505770535,6.6654,149.98,149.93,6.6674]
[1745505770731,42.55648795,149.99,149.89,15.67648795]
[1745505770931,6.6656,149.98,149.89,15.67648795]
[1745505771135,42.55648795,149.99,149.93,15.67648795]
[1745505771136,26.88,149.99,149.93,15.67648795]
[1745505771539,26.88,149.99,149.98,6.6654]
[1745505771871,26.88,149.99,149.94,2.011]
[1745505772040,26.88,149.99,149.97,6.6658]
[1745505772241,26.88,149.99,149.94,2.011]
[1745505772535,26.88,149.99,149.91,42.55648795]
[1745505772741,26.88,149.99,149.96,6.666]
[1745505773140,42.55648795,149.99,149.96,6.666]
[1745505773941,42.55648795,149.99,149.97,6.6657]
[1745505774143,26.88,149.99,149.91,42.55648795]
[1745505774640,26.88,149.99,149.96,6.666]
[1745505774841,26.88,149.99,149.91,42.55648795]
[1745505775090,26.88,149.99,149.98,6.6654]
[1745505775740,26.88,149.99,149.97,6.6656]
[1745505776244,26.88,149.99,149.96,6.6661]
[1745505776542,26.88,149.99,149.94,2.044]
[1745505776840,26.88,149.99,149.98,6.6654]
[1745505777041,26.88,149.99,149.95,2.0074]
[1745505778642,26.88,149.99,149.97,6.6656]
[1745505778846,26.88,149.99,149.95,2.0074]
[1745505779143,26.88,149.99,149.98,6.6654]
[1745505781472,26.88,150.02,149.95,17.68388795]
[1745505781644,26.88,150.02,149.96,2.0729]
[1745505781949,26.88,150.02,150.0,6.6642]
[1745505782642,42.55648795,150.02,149.96,2.0729]
[1745505782848,42.55648795,150.02,149.95,2.0074]
[1745505783048,6.6645,150.01,149.95,2.0074]
[1745505783350,15.67648795,150.0,149.96,6.6662]
[1745505783749,15.67648795,150.0,149.92,2.0729]
[1745505784148,6.6652,149.99,149.92,2.0729]
[1745505784450,26.88,149.98,149.96,6.6662]
[1745505784650,26.88,149.98,149.92,2.0729]
[1745505784851,26.88,149.98,149.94,6.667]
[1745505785348,33.5455,149.98,149.94,6.667]
[1745505786649,49.22198795,149.98,149.94,6.667]
[1745505786849,49.22198795,149.98,149.95,6.6666]
[1745505788149,42.55648795,149.98,149.95,6.6666]
[1745505788358,42.55648795,149.98,149.92,2.0729]
[1745505788748,42.55648795,149.98,149.89,17.76228795]
[1745505788949,42.55648795,149.98,149.89,2.0858]
[1745505789244,42.55648795,149.98,149.89,17.76228795]
[1745505789447,49.22208795,149.98,149.89,17.76228795]
[1745505789854,49.22208795,149.98,149.94,6.6669]
[1745505790152,6.6658,149.97,149.89,17.76228795]
[1745505790547,42.55648795,149.98,149.89,17.76228795]
[1745505790948,42.55648795,149.98,149.96,6.6662]
[1745505791152,26.88,149.98,149.96,6.6662]
[1745505791454,26.88,149.98,149.94,6.6668]
[1745505791756,33.5458,149.98,149.94,6.6668]
[1745505792959,26.88,149.98,149.9,2.1393]
[1745505793157,26.88,149.98,149.91,15.67648795]
[1745505793454,33.5455,149.98,149.95,6.6665]
[1745505793848,33.5455,149.98,149.9,2.1393]
[1745505794156,33.5455,149.98,149.94,6.6669]
[1745505795257,6.6658,149.97,149.94,6.6669]
[1745505795459,15.67648795,149.97,149.9,2.1393]
[1745505795861,22.34258795,149.97,149.9,2.1393]
[1745505796356,1.16067706,150.06,149.91,15.67648795]
[1745505796557,15.67648795,150.11,150.0,15.67648795]
[1745505796858,22.33638795,150.11,150.01,3.9163]
[1745505797160,62.83858577,150.12,150.01,3.9163]
[1745505797161,15.67648795,150.07,150.01,3.9163]
[1745505797361,26.86,150.06,150.01,3.9163]
[1745505798358,26.86,150.06,149.97,1.9981]
[1745505798607,26.86,150.06,149.97,5.9144]
[1745505798763,26.86,150.06,150.02,6.6633]
[1745505799161,26.86,150.06,149.98,15.67648795]
[1745505799366,26.86,150.06,150.0,15.67648795]
[1745505799563,26.86,150.09,150.02,15.67648795]
[1745505799769,26.86,150.09,150.07,6.6612]
[1745505800163,26.86,150.09,150.03,1.941]
[1745505801271,26.86,150.09,150.06,6.6615]
[1745505801571,26.86,150.09,150.03,1.941]
[1745505801771,42.53648795,150.09,150.03,1.941]
[1745505802271,42.53648795,150.09,150.04,6.6625]
[1745505804772,26.86,150.09,150.03,1.941]
[1745505806372,26.86,150.09,150.07,6.6614]
[1745505806874,26.86,150.09,150.07,6.661]
[1745505807175,26.86,150.09,150.04,17.61568795]
[1745505807369,26.86,150.09,150.07,6.6613]
[1745505808077,26.86,150.09,150.06,6.6616]
[1745505808771,26.86,150.09,150.04,1.9392]
[1745505808978,42.53648795,150.09,150.0,26.86]
[1745505809478,6.6621,150.06,150.02,6.6636]
[1745505809878,6.6616,150.07,150.02,6.6636]
[1745505810177,6.6616,150.07,150.03,6.6631]
[1745505811080,6.6611,150.08,150.03,6.6631]
[1745505812078,6.6611,150.08,150.04,6.6626]
[1745505812278,15.67648795,150.07,149.99,15.67648795]
[1745505812681,22.33808795,150.07,150.03,6.6628]
[1745505813782,22.33808795,150.07,150.04,6.6627]
[1745505814383,15.67648795,150.05,149.92,13.3353]
[1745505814584,42.51648795,150.04,149.94,15.67648795]
[1745505814884,6.6633,150.03,149.99,6.6648]
[1745505815285,42.51648795,150.04,149.99,6.6648]
[1745505815584,49.17958795,150.04,150.0,6.6643]
[1745505815984,49.17958795,150.04,149.96,1.9331]
[1745505816185,6.6633,150.03,149.99,6.6648]
[1745505816886,26.86,150.02,149.99,6.6648]
[1745505817086,33.5237,150.02,149.98,6.6653]
[1745505817279,26.86,150.02,149.96,1.9331]
[1745505817476,26.86,150.06,149.98,15.67648795]
[1745505817681,26.86,150.05,150.0,6.6641]
[1745505817904,15.67648795,150.03,149.96,1.9331]
[1745505818178,6.6641,150.01,149.97,6.6656]
[1745505818378,26.86,150.0,149.96,1.9331]
[1745505818579,26.86,150.0,149.98,6.665]
[1745505818785,26.86,150.03,149.97,15.67648795]
[1745505819191,26.86,150.03,150.0,6.6642]
[1745505819588,26.86,150.03,149.97,15.67648795]
[1745505819780,26.86,150.06,149.99,15.67648795]
[1745505820109,26.86,150.06,150.03,15.67648795]
[1745505820286,26.86,150.06,149.99,15.67648795]
[1745505820493,31.3529759,150.01,149.83,357.0]
[1745505820688,15.67648795,149.94,149.84,3.9175]
[1745505820889,506.68,150.0,149.84,3.9175]
[1745505820890,15.67648795,149.92,149.84,3.9175]
[1745505821092,26.86,149.92,149.87,15.67648795]
[1745505821393,26.86,149.95,149.87,15.67648795]
[1745505821693,26.86,149.95,149.87,42.53648795]
[1745505821893,479.82,150.0,149.91,15.67648795]
[1745505822093,33.5254,149.99,149.93,15.67648795]
[1745505822289,26.86,149.99,149.93,15.67648795]
[1745505822490,6.6661,149.97,149.91,15.67648795]
[1745505822690,26.86,149.99,149.89,15.67648795]
[1745505822891,26.86,149.99,149.9,3.9173]
[1745505823191,26.86,150.02,149.95,15.67648795]
[1745505823392,26.86,150.02,149.96,1.9935]
[1745505823692,6.6642,150.01,149.96,1.9935]
[1745505823894,26.86,150.02,149.96,8.6597]
[1745505824192,26.86,150.02,149.96,1.9935]
[1745505824391,26.86,150.02,149.99,15.67648795]
[1745505824588,26.86,150.05,149.99,15.67648795]
[1745505824787,26.86,150.05,149.97,22.34198795]
[1745505824993,26.86,150.05,149.97,15.67648795]
[1745505825188,15.67648795,150.0,149.92,26.86]
[1745505825492,26.86,149.99,149.93,6.6676]
[1745505825991,6.6654,149.98,149.93,6.6676]
[1745505826191,15.67648795,149.96,149.92,2.0605]
[1745505827093,15.67648795,149.98,149.92,2.0605]
[1745505827393,26.86,149.99,149.92,2.0605]
[1745505827794,26.86,149.99,149.95,6.6664]
[1745505828295,26.86,149.99,149.92,2.0605]
[1745505828496,26.86,149.99,149.96,6.666]
[1745505829596,25.08011281,150.02,149.98,6.6654]
[1745505829597,26.84,150.02,149.98,6.6654]
[1745505829795,26.84,150.05,149.95,25.08011281]
[1745505829993,51.92011281,150.08,149.99,6.6647]
[1745505830190,6.6623,150.06,149.95,27.08871281]
[1745505830398,51.92011281,150.08,149.95,27.08871281]
[1745505830599,51.92011281,150.08,150.01,6.664]
[1745505830791,6.6619,150.06,150.01,6.664]
[1745505831097,51.92011281,150.08,149.95,27.08871281]
[1745505831391,25.08011281,150.05,149.95,2.0086]
[1745505831595,26.84,150.04,149.99,6.6648]
[1745505831797,33.5029,150.04,149.99,6.6648]
[1745505832095,33.5029,150.04,149.95,2.0086]
[1745505832395,33.5029,150.04,149.95,27.08871281]
[1745505832396,26.84,150.04,149.95,27.08871281]
[1745505832596,26.84,150.04,149.98,25.08011281]
[1745505832798,26.84,150.07,150.03,6.6629]
[1745505832997,26.84,150.07,149.99,3.9879]
[1745505833496,26.84,150.1,149.99,3.9879]
[1745505833694,26.84,150.1,150.05,6.6619]
[1745505833895,26.84,150.1,149.99,3.9879]
[1745505834097,6.6606,150.09,149.99,3.9879]
[1745505834400,26.84,150.1,149.99,3.9879]
[1745505834600,6.6612,150.08,149.99,3.9879]
[1745505835000,25.08011281,150.08,150.02,6.6633]
[1745505835190,25.08011281,150.08,149.99,3.9879]
[1745505835499,25.08011281,150.08,150.04,6.6626]
[1745505835699,31.74111281,150.08,150.04,6.6626]
[1745505836201,25.08011281,150.08,150.05,6.6622]
[1745505836401,25.08011281,150.08,149.99,3.9879]
[1745505836900,31.74111281,150.08,150.04,6.6624]
[1745505837900,6.6614,150.07,150.04,6.6624]
[1745505838199,26.84,150.06,150.04,6.6624]
[1745505838494,26.84,150.06,150.05,6.6623]
[1745505838797,26.84,150.06,149.99,3.9879]
[1745505839902,26.84,150.06,150.05,6.6623]
[1745505840203,26.82,150.09,149.99,3.9879]
[1745505840604,26.82,150.09,150.06,6.6615]
[1745505841303,6.6609,150.08,149.99,3.9879]
[1745505841603,25.08011281,150.08,149.99,3.9879]
[1745505841900,31.74121281,150.08,150.04,6.6623]
[1745505842103,25.08011281,150.08,149.99,3.9879]
[1745505842503,6.6614,150.07,150.03,6.6629]
[1745505842799,25.08011281,150.08,149.99,3.9879]
[1745505843196,6.6625,150.05,150.01,6.664]
[1745505843501,26.82,150.04,149.99,3.9879]
[1745505843701,26.82,150.04,150.01,6.6637]
[1745505844606,33.483,150.04,150.0,6.6643]
[1745505844796,26.82,150.04,149.95,28.8286]
[1745505845004,26.82,150.04,149.95,2.0086]
[1745505845201,6.6637,150.02,149.95,2.0086]
[1745505845401,26.82,150.04,149.95,2.0086]
[1745505845905,6.6634,150.03,149.99,6.6646]
[1745505846105,26.82,150.04,149.95,2.0086]
[1745505846406,26.82,150.04,149.96,26.82]
[1745505847804,26.82,150.04,149.95,2.0086]
[1745505848200,26.82,150.04,149.99,6.6649]
[1745505848804,26.82,150.04,149.98,6.6653]
[1745505849005,26.82,150.04,149.95,2.0086]
[1745505849206,6.6641,150.01,149.95,2.0086]
[1745505849601,22.3357646,150.02,149.95,2.0086]
[1745505849802,15.6719646,150.0,149.94,3.8102]
[1745505850010,42.5119646,150.0,149.94,3.8102]
[1745505850306,15.6719646,149.98,149.9,28.7595]
[1745505850606,15.6719646,149.98,149.94,6.6669]
[1745505850807,22.3375646,149.98,149.94,6.6669]
[1745505851307,6.6656,149.98,149.94,6.6669]
[1745505851506,51.92690811,150.0,149.9,30.7643]
[1745505852409,58.59160811,150.0,149.96,6.666]
[1745505852605,51.92690811,150.0,149.96,6.666]
[1745505852808,51.92690811,150.0,149.9,30.7643]
[1745505853008,6.6649,149.99,149.95,6.6663]
[1745505853321,51.92690811,150.0,149.9,30.7643]
[1745505853609,6.6658,149.97,149.9,3.9243]
[1745505854110,6.6656,149.98,149.94,6.6671]
[1745505854310,51.92690811,150.0,149.9,3.9243]
[1745505854611,26.84,150.0,149.98,6.6651]
[1745505854810,26.84,150.0,149.91,26.84]
[1745505855509,26.84,150.0,149.97,6.6658]
[1745505855707,26.84,150.0,149.91,26.84]
[1745505855908,26.82,150.03,149.93,25.08690811]
[1745505856508,6.6647,150.0,149.91,26.84]
[1745505856705,26.82,150.03,149.91,26.84]
[1745505857012,6.6639,150.02,149.91,26.84]
[1745505857213,26.82,150.03,149.91,26.84]
[1745505857811,26.82,150.03,149.97,6.6657]
[1745505858013,25.08690811,150.01,149.91,26.84]
[1745505858513,51.90690811,150.03,149.91,26.84]
[1745505858813,6.6652,149.99,149.94,6.6669]
[1745505859112,26.82,149.99,149.9,3.9243]
[1745505859414,33.4849,149.99,149.95,6.6665]
[1745505859612,26.82,149.99,149.9,3.9243]
[1745505860612,33.485,149.99,149.95,6.6664]
[1745505860814,26.82,149.99,149.9,3.9243]
[1745505863317,26.82,149.99,149.95,6.6665]
[1745505863318,33.485,149.99,149.95,6.6665]
[1745505863516,26.82,149.99,149.9,3.9243]
[1745505864414,26.82,150.02,149.92,25.08690811]
[1745505864718,26.82,150.02,149.92,51.90690811]
[1745505865119,506.62,150.05,149.95,25.08690811]
[1745505865319,506.62,150.05,149.96,32.7115]
[1745505865514,26.82,150.05,149.96,32.7115]
[1745505867619,6.663,150.04,149.99,6.6645]
[1745505867820,26.82,150.05,149.96,32.7115]
[1745505868313,33.4825,150.05,149.96,32.7115]
[1745505868815,26.82,150.05,149.96,32.7115]
[1745505869117,25.08690811,150.03,149.92,51.90690811]
[1745505869320,25.08690811,150.03,149.92,26.82]
[1745505869519,6.6642,150.01,149.97,6.6658]
[1745505869717,51.90690811,150.05,149.92,51.90690811]
[1745505870214,51.90690811,150.05,149.92,26.82]
[1745505870418,25.08690811,150.02,149.91,3.972]
[1745505870720,6.6651,149.99,149.95,6.6665]
[1745505871016,26.82,150.0,149.95,6.6665]
[1745505871318,6.6653,149.99,149.95,6.6665]
[1745505872722,26.82,150.0,149.91,3.972]
[1745505873324,33.4845,150.0,149.91,3.972]
[1745505873824,33.4845,150.0,149.96,6.666]
[1745505874020,6.6655,149.98,149.91,3.972]
[1745505874327,26.82,150.0,149.96,6.6659]
[1745505874621,26.82,150.0,149.91,29.05890811]
[1745505874822,26.82,150.0,149.97,6.6656]
[1745505875022,26.82,150.0,149.91,29.05890811]
[1745505875224,33.4849,150.0,149.91,29.05890811]
[1745505875424,26.82,150.0,149.91,29.05890811]
[1745505875725,6.6649,149.99,149.91,3.972]
[1745505876022,6.6649,149.99,149.95,6.6664]
[1745505876220,6.6649,149.99,149.91,3.972]
[1745505876427,33.4847,150.0,149.91,3.972]
[1745505876726,33.4847,150.0,149.96,6.666]
[1745505877026,6.665,149.99,149.92,26.82]
[1745505877826,6.665,149.99,149.95,6.6665]
[1745505878922,6.665,149.99,149.92,26.82]
[1745505878923,6.6674,149.94,149.9,6.6686]
[1745505879133,26.82,149.97,149.86,506.6]
[1745505879331,26.82,149.97,149.9,15.67651065]
[1745505879530,26.82,149.97,149.94,6.6669]
[1745505879729,42.49651065,150.0,149.91,3.9099]
[1745505880029,6.665,149.99,149.91,3.9099]
[1745505880236,42.49651065,150.0,149.91,3.9099]
[1745505880731,6.6651,149.99,149.91,3.9099]
[1745505881325,42.49651065,150.0,149.95,6.6664]
[1745505881527,26.82,150.0,149.94,15.67651065]
[1745505881733,26.82,150.03,149.94,42.49651065]
[1745505881928,6.6638,150.02,149.98,6.6651]
[1745505883232,6.6638,150.02,149.99,6.6649]
[1745505884231,6.6634,150.03,150.0,6.6644]
[1745505884729,42.49651065,150.04,150.0,6.6644]
[1745505884930,42.49651065,150.04,149.94,42.49651065]
[1745505885325,49.15941065,150.04,149.94,44.38591065]
[1745505885532,42.49651065,150.04,150.0,6.6643]
[1745505886230,6.6634,150.03,150.0,6.6643]
[1745505886728,49.15941065,150.04,150.01,6.6637]
[1745505887126,42.49651065,150.04,149.96,15.67651065]
[1745505887331,42.49651065,150.04,150.02,6.6635]
[1745505887525,42.49651065,150.04,149.97,4.1143]
[1745505887832,49.15951065,150.04,149.97,4.1143]
[1745505888335,42.49651065,150.04,149.97,4.1143]
[1745505888534,6.6634,150.03,149.99,6.6647]
[1745505888833,15.67651065,150.02,149.94,28.7094]
[1745505889335,6.6641,150.01,149.94,28.7094]
[1745505889633,15.67651065,150.02,149.94,28.7094]
[1745505889834,22.34041065,150.02,149.98,6.665]
[1745505890335,6.664,150.01,149.97,6.6655]
[1745505890636,15.67651065,150.02,149.94,28.7094]
[1745505890935,22.34031065,150.02,149.98,6.6652]
[1745505891336,15.67651065,150.02,149.98,6.6652]
[1745505891731,22.34031065,150.02,149.98,6.6652]
[1745505892934,6.6638,150.02,149.98,6.6652]
[1745505893234,6.6641,150.01,149.98,6.6652]
[1745505893734,6.6638,150.02,149.98,6.6652]
[1745505893935,42.49651065,150.04,149.99,6.6648]
[1745505894336,6.6634,150.03,149.99,6.6648]
[1745505894840,26.82,150.04,149.97,15.67651065]
[1745505895041,26.82,150.04,149.98,3.9913]
[1745505895741,26.82,150.04,150.01,6.6638]
[1745505896234,26.82,150.04,150.02,6.6635]
[1745505896541,26.82,150.04,149.98,3.9913]
[1745505896839,26.82,150.04,150.01,6.6638]
[1745505897541,33.4827,150.04,150.01,6.6638]
[1745505897742,42.49651065,150.04,149.95,15.67651065]
[1745505897940,42.49651065,150.04,149.95,81.58181065]
[1745505898142,42.49651065,150.04,150.0,6.6643]
[1745505898742,6.6635,150.03,150.0,6.6643]
[1745505899244,15.67651065,150.02,149.99,6.6648]
[1745505899641,15.67651065,150.02,149.95,1.9869]
[1745505899841,22.34031065,150.02,149.99,6.6646]
[1745505900544,6.6638,150.02,150.0,6.6644]
[1745505901243,6.6638,150.02,149.99,6.6647]
[1745505901445,26.82,150.04,149.97,15.67651065]
[1745505902442,33.483,150.04,150.01,6.6638]
[1745505902844,15.67651065,150.02,149.95,1.9869]
[1745505903447,15.67651065,150.02,149.97,6.6656]
[1745505903645,6.6647,150.0,149.97,6.6656]
[1745505903946,15.67651065,150.02,149.94,28.7384]
[1745505904445,6.6645,150.0,149.97,6.6656]
[1745505904746,15.67651065,150.02,149.97,6.6656]
[1745505905043,6.6643,150.01,149.98,6.6654]
[1745505905744,6.6645,150.0,149.97,6.6656]
[1745505906244,15.67651065,150.02,149.98,6.6653]
[1745505906445,15.67651065,150.02,149.94,1.9184]
[1745505906648,26.82,150.04,149.97,15.67651065]
[1745505906845,26.82,150.07,149.99,15.67651065]
[1745505907045,26.82,150.07,150.0,1.9304]
[1745505907346,26.82,150.07,150.06,6.6618]
[1745505907548,49.15671065,150.1,150.06,6.6618]
[1745505908451,6.6605,150.09,150.06,6.6618]
[1745505909151,6.6605,150.09,150.01,15.67651065]
[1745505909850,6.6605,150.09,150.06,6.6618]
[1745505910054,15.67651065,150.08,150.0,1.9304]
[1745505910350,15.67651065,150.06,150.03,6.6631]
[1745505910649,42.49651065,150.1,150.0,17.60691065]
[1745505910952,6.6612,150.08,150.04,6.6626]
[1745505911950,6.6607,150.09,150.0,17.60691065]
[1745505912150,6.6607,150.09,150.02,15.67651065]
[1745505912450,42.49651065,150.1,150.02,15.67651065]
[1745505912645,42.49651065,150.1,150.0,17.60691065]
[1745505912951,42.49651065,150.1,150.05,6.6619]
[1745505913152,6.6607,150.09,150.05,6.6619]
[1745505913452,42.49651065,150.1,150.0,17.60691065]
[1745505913752,6.6614,150.07,150.0,17.60691065]
[1745505913952,42.49651065,150.1,150.0,17.60691065]
[1745505914354,6.6611,150.08,150.04,6.6623]
[1745505914549,6.6611,150.08,150.0,17.60691065]
[1745505914550,42.49651065,150.1,150.0,17.60691065]
[1745505914750,42.49651065,150.1,150.02,15.67651065]
[1745505914954,6.662,150.06,150.02,6.6634]
[1745505915151,15.67651065,150.08,150.0,17.60691065]
[1745505915454,6.6621,150.06,150.02,6.6634]
[1745505915751,6.6621,150.06,150.0,17.60691065]
[1745505915952,6.6616,150.07,150.0,17.60691065]
[1745505916153,15.67651065,150.08,150.0,17.60691065]
[1745505916550,6.6614,150.07,150.03,6.6628]
[1745505916859,6.6614,150.07,150.0,17.60691065]
[1745505917154,26.82,150.1,150.02,15.67651065]
[1745505917357,26.82,150.1,150.07,6.6613]
[1745505917653,26.82,150.1,150.03,26.8]
[1745505917846,33.4801,150.1,150.06,6.6614]
[1745505918048,42.49651065,150.1,150.03,26.8]
[1745505918854,49.15681065,150.1,150.06,6.6615]
[1745505919155,42.49651065,150.1,150.03,26.8]
[1745505919455,15.67651065,150.08,150.0,1.9304]
[1745505919657,15.67651065,150.06,150.0,1.9304]
[1745505920054,6.6625,150.05,150.01,6.6638]
[1745505920457,15.67651065,150.06,150.0,1.9304]
[1745505920657,42.49651065,150.1,150.0,17.60691065]
[1745505921054,6.6612,150.08,150.04,6.6624]
[1745505921254,22.33771065,150.08,150.04,6.6624]
[1745505921461,6.6615,150.07,150.04,6.6624]
[1745505921757,6.6615,150.07,150.0,1.9304]
[1745505921957,22.33761065,150.08,150.0,1.9304]
[1745505922160,15.67651065,150.06,150.0,1.9304]
[1745505922858,6.6614,150.07,150.0,1.9304]
[1745505923157,22.33791065,150.07,150.0,1.9304]
[1745505923360,15.67651065,150.05,149.99,26.8]
[1745505923558,15.67651065,150.03,149.98,2.0272]
[1745505923855,15.67651065,150.01,149.94,26.8]
[1745505924061,22.34071065,150.01,149.96,6.6662]
[1745505924653,22.34151065,149.99,149.94,6.6671]
[1745505924857,42.47651065,149.99,149.94,6.6671]
[1745505925460,15.67651065,149.97,149.88,26.8]
[1745505926261,6.6667,149.95,149.88,26.8]
[1745505926556,15.67651065,149.95,149.88,26.8]
[1745505926761,42.47651065,149.95,149.88,26.8]
[1745505926963,49.14351065,149.95,149.9,6.6689]
[1745505927161,42.47651065,149.95,149.9,6.6689]
[1745505927358,42.47651065,149.95,149.87,4.0699]
[1745505927762,42.47651065,149.95,149.88,6.6697]
[1745505928266,15.67651065,149.93,149.88,6.6697]
[1745505928459,15.67651065,149.91,149.88,6.6697]
[1745505928664,15.67651065,149.89,149.82,28.8576]
[1745505928866,15.67651065,149.87,149.82,6.0189]
[1745505929166,15.67651065,149.87,149.82,3.9613]
[1745505929367,15.67651065,149.87,149.84,6.6716]
[1745505929866,15.67651065,149.87,149.83,6.6718]
[1745505930564,15.67651065,149.87,149.84,6.6716]
[1745505931268,15.67651065,149.87,149.83,6.6719]
[1745505931571,42.47651065,149.87,149.82,3.9613]
[1745505931765,42.47651065,149.87,149.84,6.6713]
[1745505933575,42.47651065,149.87,149.82,3.9613]
[1745505933576,42.47651065,149.87,149.85,6.671]
[1745505934170,42.47651065,149.87,149.86,6.6707]
[1745505934971,26.8,149.87,149.86,6.6707]
[1745505935476,26.82,149.9,149.88,6.6698]
[1745505935664,26.82,149.9,149.82,19.63781065]
[1745505935873,26.82,149.9,149.83,1.9906]
[1745505936267,26.82,149.9,149.83,28.8106]
[1745505937075,26.82,149.9,149.86,6.6703]
[1745505937273,26.82,149.9,149.83,28.8106]
[1745505938374,15.67651065,149.89,149.83,1.9906]
[1745505938674,15.67651065,149.87,149.82,3.9613]
[1745505938973,15.67651065,149.87,149.85,6.6711]
[1745505939173,22.34601065,149.89,149.85,6.6711]
[1745505939374,22.34601065,149.89,149.82,3.9613]
[1745505939574,15.67651065,149.87,149.83,6.672]
[1745505939872,15.67651065,149.87,149.82,3.9613]
[1745505940175,15.67651065,149.87,149.85,6.6711]
[1745505940477,15.67651065,149.87,149.82,3.9613]
[1745505940775,22.34701065,149.87,149.83,6.672]
[1745505941374,15.67651065,149.87,149.84,6.6715]
[1745505941675,26.82,149.9,149.82,2.0076]
[1745505942070,33.489,149.9,149.82,2.0076]
[1745505942271,15.67651065,149.87,149.82,2.0076]
[1745505943777,15.67651065,149.87,149.84,6.6714]
[1745505944174,15.67651065,149.87,149.82,2.0076]
[1745505944477,26.82,149.86,149.79,2.0342]
[1745505944878,26.82,149.86,149.84,6.6714]
[1745505945178,26.82,149.86,149.79,17.71071065]
[1745505945472,26.82,149.86,149.84,6.6713]
[1745505946272,26.82,149.86,149.79,2.0342]
[1745505946472,15.67651065,149.85,149.79,2.0342]
[1745505946679,15.67651065,149.83,149.79,6.6735]
[1745505946876,15.67651065,149.81,149.73,1.9748]
[1745505947074,15.67651065,149.79,149.73,4.0312]
[1745505947275,15.67651065,149.79,149.75,6.6754]
[1745505947575,15.67651065,149.79,149.73,2.0564]
[1745505947772,15.67651065,149.77,149.74,6.6758]
[1745505947977,42.49651065,149.77,149.69,28.7948]
[1745505948177,15.67651065,149.75,149.66,42.49651065]
[1745505948377,15.67651065,149.73,149.66,26.82]
[1745505948578,42.49651065,149.73,149.66,26.82]
[1745505948878,42.49651065,149.73,149.7,6.6776]
[1745505949478,49.17301065,149.73,149.7,6.6776]